fUST/lending_fUST_20240501
["ID","MTS","AMOUNT","RATE_DAILY","PERIOD"]
[324985234,1714495844113,-1786.201299,0.0003178,2]
[324985237,1714495844122,-1786.201299,0.0003178,2]
[324985238,1714495844131,-500.0,0.0003178,2]
[324985240,1714495844140,-500.0,0.0003178,2]
[324985242,1714495844149,-654.97498,0.0003178,2]
[324985244,1714495844158,-654.97498,0.0003178,2]
[324985246,1714495844167,-151.0,0.0003178,2]
[324985249,1714495844176,-654.97498,0.0003178,2]
[324985251,1714495844185,-500.0,0.0003178,2]
[324985253,1714495844195,-654.97498,0.0003178,2]
[324985254,1714495844204,-654.97498,0.0003178,2]
[324985257,1714495844213,-654.97498,0.0003178,2]
[324985258,1714495844222,-500.0,0.0003178,2]
[324985261,1714495844231,-500.0,0.0003178,2]
[324985262,1714495844240,-500.0,0.0003178,2]
[324985264,1714495844249,-1524.93,0.0003178,2]
[324985267,1714495844258,-1037.025108,0.0003178,2]
[324985268,1714495844267,-1037.025108,0.0003178,2]
[324985271,1714495844278,-1037.025108,0.0003178,2]
[324985273,1714495844288,-637.62,0.0003178,2]
[324985274,1714495844297,-263.84155,0.0003178,2]
[324985276,1714495844306,-263.84155,0.0003178,2]
[324985278,1714495844315,-263.84155,0.0003178,2]
[324985280,1714495844324,-1037.025108,0.0003178,2]
[324985282,1714495844334,-1037.025108,0.0003178,2]
[324985284,1714495844343,-263.84155,0.0003178,2]
[324985286,1714495844351,-263.84155,0.0003178,2]
[324985289,1714495844361,-263.84155,0.0003178,2]
[324985291,1714495844370,-1037.025108,0.0003178,2]
[324985292,1714495844379,-500.0,0.0003178,2]
[324985295,1714495844393,-515.66609002,0.0003178,2]
[324985296,1714495844403,-500.0,0.0003178,2]
[324985298,1714495844412,-500.0,0.0003178,2]
[324985300,1714495844421,-500.0,0.0003178,2]
[324985302,1714495844430,-151.0,0.0003178,2]
[324985304,1714495844440,-250.816963,0.0003178,2]
[324985306,1714495844448,-500.0,0.0003178,2]
[324985308,1714495844458,-539.55,0.0003178,2]
[324985311,1714495844468,-500.0,0.0003178,2]
[324985312,1714495844477,-526.1433345,0.0003178,2]
[324985315,1714495844487,-165.868718,0.0003178,2]
[324985317,1714495844496,-165.868718,0.0003178,2]
[324985318,1714495844505,-165.868718,0.0003178,2]
[324985321,1714495844514,-500.0,0.0003178,2]
[324985323,1714495844526,-165.868718,0.0003178,2]
[324985324,1714495844535,-500.0,0.0003178,2]
[324985326,1714495844544,-291.81578745,0.0003178,2]
[324985328,1714495844554,-500.0,0.0003178,2]
[324985329,1714495844563,-165.868718,0.0003178,2]
[324985330,1714495844572,-165.868718,0.0003178,2]
[324985331,1714495844581,-165.868718,0.0003178,2]
[324985332,1714495844591,-500.0,0.0003178,2]
[324985333,1714495844600,-165.868718,0.0003178,2]
[324985334,1714495844609,-924.63,0.0003178,2]
[324985335,1714495844618,-3587.0,0.0003178,2]
[324985336,1714495844629,-1150.13,0.0003178,2]
[324985337,1714495844639,-500.0,0.0003178,2]
[324985338,1714495844647,-609.77454068,0.0003178,2]
[324985339,1714495844657,-791.0,0.0003178,2]
[324985340,1714495844666,-500.0,0.0003178,2]
[324985341,1714495844676,-500.0,0.0003178,2]
[324985342,1714495844685,-500.0,0.0003178,2]
[324985343,1714495844694,-500.0,0.0003178,2]
[324985344,1714495844703,-862.88,0.0003178,2]
[324985345,1714495844712,-501.91101599,0.0003178,2]
[324985346,1714495844721,-151.0,0.0003178,2]
[324985347,1714495844731,-151.0,0.0003178,2]
[324985348,1714495844740,-151.0,0.0003178,2]
[324985349,1714495844750,-300.0,0.0003178,2]
[324985350,1714495844759,-169.849495,0.0003178,2]
[324985351,1714495844767,-169.849495,0.0003178,2]
[324985352,1714495844779,-169.849495,0.0003178,2]
[324985353,1714495844788,-169.849495,0.0003178,2]
[324985354,1714495844798,-500.0,0.0003178,2]
[324985355,1714495844807,-500.0,0.0003178,2]
[324985356,1714495844816,-151.0,0.0003178,2]
[324985358,1714495844825,-169.849495,0.0003178,2]
[324985359,1714495844834,-162.469575,0.0003178,2]
[324985360,1714495844844,-169.849495,0.0003178,2]
[324985361,1714495844853,-854.56,0.0003178,2]
[324985362,1714495844862,-500.0,0.0003178,2]
[324985363,1714495844872,-169.849495,0.0003178,2]
[324985364,1714495844881,-169.849495,0.0003178,2]
[324985366,1714495844891,-500.0,0.0003178,2]
[324985367,1714495844899,-151.0,0.0003178,2]
[324985369,1714495844909,-500.0,0.0003178,2]
[324985371,1714495844918,-151.0,0.0003178,2]
[324985373,1714495844927,-151.0,0.0003178,2]
[324985374,1714495844936,-647.71,0.0003178,2]
[324985376,1714495844944,-886.62,0.0003178,2]
[324985377,1714495844953,-151.0,0.0003178,2]
[324985378,1714495844963,-151.0,0.0003178,2]
[324985379,1714495844971,-151.0,0.0003178,2]
[324985380,1714495844980,-500.0,0.0003178,2]
[324985381,1714495844989,-483.421487,0.0003178,2]
[324985382,1714495844999,-500.0,0.0003178,2]
[324985383,1714495845007,-802.53,0.0003178,2]
[324985384,1714495845017,-483.421487,0.0003178,2]
[324985385,1714495845027,-483.421487,0.0003178,2]
[324985386,1714495845036,-500.0,0.0003178,2]
[324985387,1714495845045,-483.421487,0.0003178,2]
[324985388,1714495845054,-151.0,0.0003178,2]
[324985389,1714495845064,-483.421487,0.0003178,2]
[324985390,1714495845073,-151.0,0.0003178,2]
[324985391,1714495845082,-500.0,0.0003178,2]
[324985392,1714495845091,-483.421487,0.0003178,2]
[324985393,1714495845100,-151.0,0.0003178,2]
[324985394,1714495845110,-375.20222406,0.0003178,2]
[324985395,1714495845120,-151.0,0.0003178,2]
[324985396,1714495845129,-500.0,0.0003178,2]
[324985397,1714495845139,-151.0,0.0003178,2]
[324985398,1714495845148,-500.0,0.0003178,2]
[324985399,1714495845157,-151.0,0.0003178,2]
[324985400,1714495845166,-500.0,0.0003178,2]
[324985401,1714495845176,-289.503798,0.0003178,2]
[324985402,1714495845186,-289.503798,0.0003178,2]
[324985403,1714495845195,-500.0,0.0003178,2]
[324985404,1714495845204,-289.503798,0.0003178,2]
[324985405,1714495845213,-500.0,0.0003178,2]
[324985406,1714495845222,-713.44,0.0003178,2]
[324985407,1714495845231,-289.503798,0.0003178,2]
[324985408,1714495845241,-289.503798,0.0003178,2]
[324985409,1714495845375,-289.503798,0.0003178,2]
[324985410,1714495845386,-569.73,0.0003178,2]
[324985411,1714495845396,-160.103392,0.0003178,2]
[324985412,1714495845408,-504.02,0.0003178,2]
[324985413,1714495845417,-546.574025,0.0003178,2]
[324985414,1714495845426,-546.574025,0.0003178,2]
[324985415,1714495845437,-546.574025,0.0003178,2]
[324985416,1714495845446,-500.69337852,0.0003178,2]
[324985417,1714495845455,-500.0,0.0003178,2]
[324985418,1714495845464,-546.574025,0.0003178,2]
[324985419,1714495845474,-500.0,0.0003178,2]
[324985420,1714495845484,-546.574025,0.0003178,2]
[324985421,1714495845494,-546.574025,0.0003178,2]
[324985422,1714495845504,-500.0,0.0003178,2]
[324985423,1714495845513,-500.63824826,0.0003178,2]
[324985424,1714495845526,-151.0,0.0003178,2]
[324985425,1714495845537,-500.0,0.0003178,2]
[324985426,1714495845546,-500.0,0.0003178,2]
[324985427,1714495845555,-500.0,0.0003178,2]
[324985428,1714495845564,-151.0,0.0003178,2]
[324985429,1714495845574,-536.08,0.0003178,2]
[324985430,1714495845583,-257.17433101,0.0003178,2]
[324985431,1714495845593,-500.0,0.0003178,2]
[324985432,1714495845603,-500.0,0.0003178,2]
[324985433,1714495845612,-500.0,0.0003178,2]
[324985434,1714495845621,-633.37,0.0003178,2]
[324985435,1714495845631,-151.0,0.0003178,2]
[324985436,1714495845640,-151.0,0.0003178,2]
[324985437,1714495845650,-151.0,0.0003178,2]
[324985438,1714495845659,-500.0,0.0003178,2]
[324985439,1714495845668,-448.529765,0.0003178,2]
[324985440,1714495845677,-448.529765,0.0003178,2]
[324985441,1714495845687,-448.529765,0.0003178,2]
[324985442,1714495845696,-346.70321081,0.0003178,2]
[324985443,1714495845705,-151.0,0.0003178,2]
[324985444,1714495845715,-151.0,0.0003178,2]
[324985445,1714495845724,-500.0,0.0003178,2]
[324985446,1714495845733,-151.0,0.0003178,2]
[324985447,1714495845743,-448.529765,0.0003178,2]
[324985448,1714495845753,-448.529765,0.0003178,2]
[324985449,1714495845762,-448.529765,0.0003178,2]
[324985450,1714495845773,-500.0,0.0003178,2]
[324985451,1714495845783,-500.0,0.0003178,2]
[324985452,1714495845792,-500.0,0.0003178,2]
[324985453,1714495845801,-500.0,0.0003178,2]
[324985454,1714495845810,-500.0,0.0003178,2]
[324985456,1714495845819,-3304.47,0.0003178,2]
[324985457,1714495845828,-500.0,0.0003178,2]
[324985459,1714495845837,-3238.184608,0.0003178,2]
[324985461,1714495845847,-3238.184608,0.0003178,2]
[324985463,1714495845856,-3238.184608,0.0003178,2]
[324985465,1714495845865,-814.27,0.0003178,2]
[324985466,1714495845874,-3238.184608,0.0003178,2]
[324985468,1714495845883,-500.0,0.0003178,2]
[324985471,1714495845892,-3238.184608,0.0003178,2]
[324985474,1714495845901,-3238.184608,0.0003178,2]
[324985476,1714495845910,-500.0,0.0003178,2]
[324985478,1714495845919,-618.81,0.0003178,2]
[324985479,1714495845928,-765.94,0.0003178,2]
[324985480,1714495845938,-585.507136,0.0003178,2]
[324985481,1714495845947,-585.507136,0.0003178,2]
[324985482,1714495845956,-585.507136,0.0003178,2]
[324985483,1714495845965,-500.0,0.0003178,2]
[324985484,1714495845974,-500.0,0.0003178,2]
[324985485,1714495845983,-585.507136,0.0003178,2]
[324985487,1714495845992,-585.507136,0.0003178,2]
[324985489,1714495846001,-585.507136,0.0003178,2]
[324985491,1714495846010,-779.16,0.0003178,2]
[324985492,1714495846019,-151.0,0.0003178,2]
[324985494,1714495846031,-500.0,0.0003178,2]
[324985495,1714495846040,-500.0,0.0003178,2]
[324985496,1714495846049,-534.2,0.0003178,2]
[324985497,1714495846058,-500.0,0.0003178,2]
[324985498,1714495846067,-186.49936577,0.0003178,2]
[324985499,1714495846076,-500.0,0.0003178,2]
[324985500,1714495846086,-500.0,0.0003178,2]
[324985501,1714495846096,-154.295428,0.0003178,2]
[324985502,1714495846105,-686.77,0.0003178,2]
[324985503,1714495846115,-500.0,0.0003178,2]
[324985505,1714495846124,-206.480256,0.0003178,2]
[324985507,1714495846133,-206.480256,0.0003178,2]
[324985508,1714495846142,-206.480256,0.0003178,2]
[324985509,1714495846151,-206.480256,0.0003178,2]
[324985510,1714495846161,-500.0,0.0003178,2]
[324985511,1714495846170,-206.480256,0.0003178,2]
[324985512,1714495846180,-206.480256,0.0003178,2]
[324985513,1714495846189,-825.88,0.0003178,2]
[324985514,1714495846199,-500.0,0.0003178,2]
[324985515,1714495846208,-500.0,0.0003178,2]
[324985516,1714495846217,-647.15544297,0.0003178,2]
[324985517,1714495846227,-500.0,0.0003178,2]
[324985518,1714495846236,-500.0,0.0003178,2]
[324985519,1714495846245,-500.0,0.0003178,2]
[324985520,1714495846255,-500.0,0.0003178,2]
[324985521,1714495846265,-563.62,0.0003178,2]
[324985522,1714495846277,-548.87,0.0003178,2]
[324985523,1714495846287,-500.0,0.0003178,2]
[324985524,1714495846297,-500.0,0.0003178,2]
[324985525,1714495846306,-1600.03,0.0003178,2]
[324985526,1714495846315,-500.0,0.0003178,2]
[324985527,1714495846324,-500.0,0.0003178,2]
[324985528,1714495846333,-500.0,0.0003178,2]
[324985529,1714495846343,-500.0,0.0003178,2]
[324985530,1714495846353,-151.0,0.0003178,2]
[324985531,1714495846362,-151.0,0.0003178,2]
[324985532,1714495846371,-500.0,0.0003178,2]
[324985533,1714495846380,-151.0,0.0003178,2]
[324985534,1714495846391,-500.0,0.0003178,2]
[324985535,1714495846400,-500.0,0.0003178,2]
[324985536,1714495846409,-500.0,0.0003178,2]
[324985537,1714495846419,-896.06,0.0003178,2]
[324985538,1714495846428,-500.0,0.0003178,2]
[324985539,1714495846438,-151.0,0.0003178,2]
[324985540,1714495846447,-151.0,0.0003178,2]
[324985541,1714495846456,-151.0,0.0003178,2]
[324985542,1714495846465,-500.0,0.0003178,2]
[324985543,1714495846476,-151.0,0.0003178,2]
[324985544,1714495846486,-151.0,0.0003178,2]
[324985545,1714495846495,-151.0,0.0003178,2]
[324985546,1714495846504,-500.0,0.0003178,2]
[324985547,1714495846513,-500.0,0.0003178,2]
[324985548,1714495846526,-398.77823047,0.0003178,2]
[324985549,1714495846535,-500.0,0.0003178,2]
[324985550,1714495846544,-208.43844434,0.0003178,2]
[324985551,1714495846553,-783.25,0.0003178,2]
[324985552,1714495846562,-153.0,0.00031808,2]
[324985553,1714495846572,-206.480256,0.00031852,2]
[324985554,1714495846581,-206.480256,0.00031852,2]
[324985555,1714495846590,-151.0,0.00031852,2]
[324985556,1714495846601,-151.0,0.00031852,2]
[324985557,1714495846610,-151.0,0.00031852,2]
[324985558,1714495846620,-1801.5,0.00031852,7]
[324985559,1714495846629,-151.0,0.00031876,2]
[324985560,1714495846638,-151.0,0.00031876,2]
[324985561,1714495846647,-151.0,0.00031876,2]
[324985562,1714495846657,-151.0,0.00031876,2]
[324985563,1714495846666,-588.0,0.000319,2]
[324985564,1714495846675,-301.54767848,0.00031907,4]
[324985565,1714495846684,-651.61,0.00031953,2]
[324985566,1714495846693,-651.61,0.00031953,2]
[324985567,1714495846703,-1000.0,0.00031953,30]
[324985568,1714495846711,-1000.0,0.00031953,30]
[324985569,1714495846721,-153.0,0.00031954,2]
[324985570,1714495846730,-153.0,0.00031954,2]
[324985571,1714495846739,-153.0,0.00031954,2]
[324985572,1714495846750,-153.0,0.00031954,2]
[324985573,1714495846759,-153.0,0.00031954,2]
[324985574,1714495846769,-153.0,0.00031954,2]
[324985575,1714495846782,-153.0,0.00031954,2]
[324985576,1714495846791,-153.0,0.00031954,2]
[324985577,1714495846801,-153.0,0.00031954,2]
[324985578,1714495846810,-153.0,0.00031954,2]
[324985579,1714495846819,-153.0,0.00031954,2]
[324985580,1714495846828,-153.0,0.00031954,2]
[324985581,1714495846837,-153.0,0.00031954,2]
[324985582,1714495846846,-153.0,0.00031954,2]
[324985583,1714495846856,-153.0,0.00031954,2]
[324985584,1714495846865,-153.0,0.00031954,2]
[324985585,1714495846874,-153.0,0.00031954,2]
[324985586,1714495846884,-153.0,0.00031954,2]
[324985587,1714495846893,-153.0,0.00031954,2]
[324985588,1714495846903,-153.0,0.00031954,2]
[324985589,1714495846912,-153.0,0.00031954,2]
[324985590,1714495846921,-153.0,0.00031954,2]
[324985591,1714495846931,-153.0,0.00031954,2]
[324985592,1714495846939,-153.0,0.00031954,2]
[324985593,1714495846949,-174.4603908,0.00031954,2]
[324985594,1714495846958,-306.0,0.00031954,2]
[324985595,1714495846967,-151.0,0.00031954,2]
[324985596,1714495846976,-151.068906,0.00031954,2]
[324985597,1714495846985,-159.666456,0.00031954,2]
[324985598,1714495846994,-159.666456,0.00031954,2]
[324985599,1714495847004,-151.0,0.00031954,2]
[324985600,1714495847012,-151.0,0.00031954,2]
[324985601,1714495847022,-151.0,0.00031954,2]
[324985602,1714495847036,-151.0,0.00031954,2]
[324985603,1714495847045,-151.0,0.00031954,2]
[324985604,1714495847055,-151.0,0.00031954,2]
[324985605,1714495847065,-151.0,0.00031954,2]
[324985606,1714495847074,-185.005155,0.00031954,2]
[324985607,1714495847083,-185.005155,0.00031954,2]
[324985608,1714495847094,-151.0,0.00031954,2]
[324985609,1714495847103,-4605.010962,0.00031954,2]
[324985610,1714495847113,-4605.010962,0.00031954,2]
[324985611,1714495847122,-1786.201299,0.00031954,2]
[324985612,1714495847133,-1786.201299,0.00031954,2]
[324985613,1714495847144,-654.97498,0.00031954,2]
[324985614,1714495847153,-654.97498,0.00031954,2]
[324985615,1714495847162,-1037.025108,0.00031954,2]
[324985616,1714495847172,-263.84155,0.00031954,2]
[324985617,1714495847182,-263.84155,0.00031954,2]
[324985618,1714495847192,-1037.025108,0.00031954,2]
[324985619,1714495847202,-165.868718,0.00031954,2]
[324985620,1714495847212,-165.868718,0.00031954,2]
[324985621,1714495847221,-151.0,0.00031954,2]
[324985622,1714495847231,-169.849495,0.00031954,2]
[324985623,1714495847240,-169.849495,0.00031954,2]
[324985624,1714495847249,-151.0,0.00031954,2]
[324985625,1714495847258,-151.0,0.00031954,2]
[324985626,1714495847268,-483.421487,0.00031954,2]
[324985627,1714495847281,-483.421487,0.00031954,2]
[324985628,1714495847290,-151.0,0.00031954,2]
[324985629,1714495847299,-151.0,0.00031954,2]
[324985630,1714495847308,-289.503798,0.00031954,2]
[324985631,1714495847317,-289.503798,0.00031954,2]
[324985632,1714495847327,-546.574025,0.00031954,2]
[324985633,1714495847336,-546.574025,0.00031954,2]
[324985634,1714495847345,-152.107121,0.00031954,2]
[324985635,1714495847355,-448.529765,0.00031954,2]
[324985636,1714495847364,-151.0,0.00031954,2]
[324985637,1714495847373,-448.529765,0.00031954,2]
[324985638,1714495847385,-3238.184608,0.00031954,2]
[324985639,1714495847395,-3238.184608,0.00031954,2]
[324985640,1714495847407,-585.507136,0.00031954,2]
[324985641,1714495847416,-585.507136,0.00031954,2]
[324985642,1714495847425,-5000.0,0.00032,4]
[324985643,1714495847436,-638.81553849,0.00032,4]
[324985644,1714495847445,-523.08153758,0.00032,2]
[324985645,1714495847455,-300.00000001,0.00032,3]
[324985646,1714495847463,-711.66738072,0.00032052,4]
[324985647,1714495847475,-163.39101402,0.00032052,4]
[324985648,1714495847484,-472.68114332,0.00032052,4]
[324985649,1714495847493,-154.84515485,0.00032052,4]
[324985650,1714495847502,-154.79876261,0.00032052,2]
[324985651,1714495847511,-946.28505963,0.00032052,4]
[324985652,1714495847521,-308.22783181,0.00032052,4]
[324985653,1714495847535,-574.60548096,0.00032052,2]
[324985654,1714495847544,-164.0768642,0.00032052,4]
[324985655,1714495847553,-1331.53527726,0.00032052,2]
[324985656,1714495847563,-151.0,0.00032052,2]
[324985657,1714495847572,-151.0,0.00032052,2]
[324985658,1714495847582,-151.293733,0.00032053,2]
[324985659,1714495847591,-651.61,0.00032053,2]
[324985660,1714495847600,-651.61,0.00032053,2]
[324985661,1714495847609,-651.61,0.00032053,2]
[324985662,1714495847619,-651.61,0.00032053,2]
[324985663,1714495847628,-151.0,0.00032053,2]
[324985664,1714495847637,-159.666456,0.00032053,2]
[324985665,1714495847647,-159.666456,0.00032053,2]
[324985666,1714495847656,-151.0,0.00032053,2]
[324985667,1714495847666,-1000.0,0.00032053,30]
[324985668,1714495847675,-1000.0,0.00032053,30]
[324985669,1714495847685,-1000.0,0.00032053,30]
[324985670,1714495847694,-1000.0,0.00032053,30]
[324985671,1714495847703,-151.0,0.00032053,2]
[324985672,1714495847712,-151.0,0.00032053,2]
[324985673,1714495847722,-151.0,0.00032053,2]
[324985674,1714495847731,-151.0,0.00032053,2]
[324985675,1714495847741,-151.0,0.00032053,2]
[324985676,1714495847750,-151.0,0.00032053,2]
[324985677,1714495847760,-185.005155,0.00032053,2]
[324985678,1714495847769,-185.005155,0.00032053,2]
[324985679,1714495847782,-4605.010962,0.00032053,2]
[324985680,1714495847791,-4605.010962,0.00032053,2]
[324985681,1714495847800,-1786.201299,0.00032053,2]
[324985682,1714495847809,-1786.201299,0.00032053,2]
[324985683,1714495847819,-654.97498,0.00032053,2]
[324985684,1714495847828,-654.97498,0.00032053,2]
[324985686,1714495847837,-1037.025108,0.00032053,2]
[324985688,1714495847847,-263.84155,0.00032053,2]
[324985689,1714495847855,-263.84155,0.00032053,2]
[324985690,1714495847865,-1037.025108,0.00032053,2]
[324985691,1714495847874,-165.868718,0.00032053,2]
[324985692,1714495847883,-165.868718,0.00032053,2]
[324985693,1714495847893,-151.0,0.00032053,2]
[324985694,1714495847902,-169.849495,0.00032053,2]
[324985695,1714495847912,-169.849495,0.00032053,2]
[324985696,1714495847921,-151.0,0.00032053,2]
[324985697,1714495847931,-151.0,0.00032053,2]
[324985698,1714495847939,-483.421487,0.00032053,2]
[324985699,1714495847949,-483.421487,0.00032053,2]
[324985700,1714495847958,-151.0,0.00032053,2]
[324985701,1714495847967,-227.578448,0.00032053,2]
[324985702,1714495847977,-289.503798,0.00032053,2]
[324985703,1714495847986,-289.503798,0.00032053,2]
[324985704,1714495847995,-546.574025,0.00032053,2]
[324985705,1714495848004,-546.574025,0.00032053,2]
[324985706,1714495848014,-448.529765,0.00032053,2]
[324985707,1714495848027,-151.697529,0.00032053,2]
[324985708,1714495848036,-448.529765,0.00032053,2]
[324985709,1714495848045,-3238.184608,0.00032053,2]
[324985710,1714495848054,-3238.184608,0.00032053,2]
[324985711,1714495848063,-585.507136,0.00032053,2]
[324985712,1714495848072,-585.507136,0.00032053,2]
[324985713,1714495848082,-206.480256,0.00032053,2]
[324985714,1714495848092,-206.480256,0.00032053,2]
[324985715,1714495848101,-151.0,0.00032053,2]
[324985716,1714495848111,-151.0,0.00032053,2]
[324985717,1714495848120,-500.0,0.00032054,2]
[324985718,1714495848130,-500.0,0.00032054,2]
[324985719,1714495848140,-500.0,0.00032054,2]
[324985720,1714495848149,-500.0,0.00032054,2]
[324985721,1714495848159,-500.0,0.00032054,2]
[324985722,1714495848168,-500.0,0.00032054,2]
[324985723,1714495848178,-988.34,0.00032054,2]
[324985724,1714495848187,-500.0,0.00032054,2]
[324985725,1714495848197,-337.60044881,0.00032054,2]
[324985726,1714495848206,-407.86654599,0.00032054,2]
[324985727,1714495848216,-500.0,0.00032054,2]
[324985728,1714495848225,-500.0,0.00032054,2]
[324985729,1714495848234,-500.0,0.00032054,2]
[324985730,1714495848244,-500.0,0.00032054,2]
[324985731,1714495848253,-500.0,0.00032054,2]
[324985732,1714495848262,-500.0,0.00032054,2]
[324985733,1714495848271,-500.0,0.00032054,2]
[324985734,1714495848283,-500.0,0.00032054,2]
[324985735,1714495848292,-500.0,0.00032054,2]
[324985736,1714495848302,-508.33,0.00032054,2]
[324985737,1714495848311,-500.0,0.00032054,2]
[324985738,1714495848320,-500.0,0.00032054,2]
[324985739,1714495848330,-151.0,0.00032054,2]
[324985740,1714495848340,-151.0,0.00032054,2]
[324985741,1714495848349,-153.453431,0.00032054,2]
[324985742,1714495848359,-500.0,0.00032054,2]
[324985743,1714495848368,-500.0,0.00032054,2]
[324985744,1714495848378,-500.0,0.00032054,2]
[324985745,1714495848390,-200.76339658,0.00032054,2]
[324985746,1714495848402,-500.0,0.00032054,2]
[324985747,1714495848411,-500.0,0.00032054,2]
[324985748,1714495848421,-500.0,0.00032054,2]
[324985749,1714495848431,-500.0,0.00032054,2]
[324985750,1714495848441,-500.0,0.00032054,2]
[324985751,1714495848451,-510.98,0.00032054,2]
[324985752,1714495848581,-500.0,0.00032054,2]
[324985753,1714495848592,-500.0,0.00032054,2]
[324985754,1714495848602,-500.0,0.00032054,2]
[324985755,1714495848611,-553.82,0.00032054,2]
[324985756,1714495848620,-500.0,0.00032054,2]
[324985757,1714495848630,-152.172222,0.00032054,2]
[324985758,1714495848640,-500.0,0.00032054,2]
[324985759,1714495848649,-500.0,0.00032054,2]
[324985760,1714495848659,-500.0,0.00032054,2]
[324985761,1714495848669,-500.0,0.00032054,2]
[324985762,1714495848679,-500.0,0.00032054,2]
[324985763,1714495848688,-500.0,0.00032054,2]
[324985764,1714495848698,-500.0,0.00032054,2]
[324985765,1714495848708,-500.0,0.00032054,2]
[324985766,1714495848718,-500.0,0.00032054,2]
[324985767,1714495848728,-500.0,0.00032054,2]
[324985768,1714495848737,-820.04,0.00032054,2]
[324985769,1714495848747,-571.87,0.00032054,2]
[324985770,1714495848756,-840.9,0.00032054,2]
[324985771,1714495848765,-500.0,0.00032054,2]
[324985772,1714495848775,-500.0,0.00032054,2]
[324985773,1714495848787,-500.0,0.00032054,2]
[324985774,1714495848796,-712.99,0.00032054,2]
[324985775,1714495848805,-159.666456,0.00032054,2]
[324985776,1714495848815,-159.666456,0.00032054,2]
[324985777,1714495848824,-159.666456,0.00032054,2]
[324985778,1714495848833,-159.666456,0.00032054,2]
[324985779,1714495848843,-159.666456,0.00032054,2]
[324985780,1714495848852,-159.666456,0.00032054,2]
[324985781,1714495848861,-500.0,0.00032054,2]
[324985782,1714495848870,-561.78,0.00032054,2]
[324985783,1714495848879,-500.0,0.00032054,2]
[324985784,1714495848889,-1553.91,0.00032054,2]
[324985785,1714495848898,-500.0,0.00032054,2]
[324985786,1714495848907,-500.0,0.00032054,2]
[324985787,1714495848916,-151.0,0.00032054,2]
[324985788,1714495848925,-151.0,0.00032054,2]
[324985789,1714495848934,-500.0,0.00032054,2]
[324985790,1714495848943,-500.0,0.00032054,2]
[324985791,1714495848952,-500.0,0.00032054,2]
[324985792,1714495848962,-500.0,0.00032054,2]
[324985793,1714495848971,-500.0,0.00032054,2]
[324985794,1714495848980,-500.0,0.00032054,2]
[324985795,1714495848989,-500.0,0.00032054,2]
[324985796,1714495848998,-984.47,0.00032054,2]
[324985797,1714495849007,-500.0,0.00032054,2]
[324985798,1714495849017,-500.0,0.00032054,2]
[324985799,1714495849026,-500.0,0.00032054,2]
[324985800,1714495849036,-558.86,0.00032054,2]
[324985801,1714495849046,-500.0,0.00032054,2]
[324985802,1714495849054,-500.0,0.00032054,2]
[324985803,1714495849063,-500.0,0.00032054,2]
[324985804,1714495849074,-500.0,0.00032054,2]
[324985805,1714495849083,-500.0,0.00032054,2]
[324985806,1714495849094,-658.2,0.00032054,2]